Cogmind - Beta 15 @@@ ROGUE MODE // 2025.05.15 @ 20:02:28 Player: Demo Result: Destroyed by Y-54 Guardian with Flak Gun Performance ------------- Evolutions (4) 2000 Regions Visited (8) 1600 Robots Destroyed (20) 100 Value Destroyed (740) 740 Prototype IDs (2) 40 Alien Tech Used (0) 0 Bonus (1825) 1825 TOTAL SCORE: 6305 Bonus ------- Pacifist 1325 Entered DSFs 500 Cogmind --------- Core Integrity 0/850 Matter 220/300 Energy 98/100 System Corruption 12% Temperature Cool (12) Movement Core (50) Location -6/Lower Caves Parts ------- > --- POWER (3) -------- (None) > --- PROPULSION (2) --- (None) > --- UTILITY (8) ------ Improved Hacking Suite Improved Hacking Suite Improved System Shield > --- WEAPON (2) ------- (None) > --- INVENTORY (5) ---- Cold Fusion Reactor Compact Battery (200) Improved Particle Charger Proton Missile Launcher Long-range Missile Launcher Peak State ------------ > --- POWER ------------ Improved Ion Engine Cold Fusion Reactor Cold Fusion Reactor > --- PROPULSION ------- Armored Treads Armored Treads > --- UTILITY ---------- Large Storage Unit Medium Reactive Plating Force Field Improved Hacking Suite Improved Hacking Suite Improved Hacking Suite Improved Hacking Suite System Shield > --- WEAPON ----------- Thermic Laser Thermic Laser > --- INVENTORY -------- Wheel Compact Wheel Armored Wheel Armored Wheel Armored Wheel Large Matter Pod Enhanced Optical Array Weapon Shielding Medium Reactive Plating Medium Reactive Plating Shock Absorption System Hardlight Generator Improved Field Recycling Unit Power Maul Impact Mace [Rating: 67] Favorites ----------- Power Cold Fusion Reactor Engine Improved Ion Engine Power Core Micro Nuclear Core Reactor Cold Fusion Reactor Propulsion Wheel Treads Armored Treads Wheel Wheel Hover Unit Backup Propulsion I Utility Improved Hacking Suite Device Hardlight Generator Storage Large Storage Unit Processor Improved Signal Interpreter Hackware Improved Hacking Suite Protection Medium Reactive Plating Weapon Thermic Laser Energy Gun Thermic Laser Energy Cannon Plasma Cannon Ballistic Gun Gauss Rifle Launcher Long-range Missile Launcher Impact Weapon Flail Build | -11 -10 -9 -8 -7 -7 -6 -6 -6 ------- Run | Yrd Mat Mat Mat Fac DSF Fac Low Low Slots Evolved 8 | . . 2 2 2 . 2 . . Power 2 | . . . . . . 2 . . Propulsion . | . . . . . . . . . Utility 6 | . . 2 2 2 . . . . Weapon . | . . . . . . . . . Parts Attached 44 | 2 . 1 6 4 10 16 4 1 Power 5 | . . . . . . 5 . . Engine 1 | . . . . . . 1 . . Core 1 | . . . . . . 1 . . Reactor 3 | . . . . . . 3 . . Propulsion 12 | 2 . . 2 1 2 4 1 . Treads 5 | 2 . . 2 . 1 . . . Leg . | . . . . . . . . . Wheel 7 | . . . . 1 1 4 1 . Hover . | . . . . . . . . . Flight . | . . . . . . . . . Utility 19 | . . 1 2 2 8 3 2 1 Device 3 | . . . . 1 . 2 . . Storage 1 | . . . . 1 . . . . Processor 1 | . . . 1 . . . . . Hackware 8 | . . . 1 . 6 . . 1 Protection 6 | . . 1 . . 2 1 2 . Artifact . | . . . . . . . . . Weapon 8 | . . . 2 1 . 4 1 . Energy Gun 3 | . . . 1 . . 2 . . Energy Cannon 1 | . . . . 1 . . . . Ballistic Gun 1 | . . . . . . 1 . . Ballistic Cannon . | . . . . . . . . . Launcher 1 | . . . . . . . 1 . Special Weapon . | . . . . . . . . . Impact Weapon 2 | . . . 1 . . 1 . . Slashing Weapon . | . . . . . . . . . Piercing Weapon . | . . . . . . . . . Special Melee Weapon . | . . . . . . . . . Unidentified Prototypes 2 | . . . . . . 2 . . Parts Lost 30 | . . 1 5 . 6 1 6 11 Power 4 | . . . 1 . 1 . 1 1 Propulsion 8 | . . 1 1 . 1 . 2 3 Utility 12 | . . . 2 . 2 1 3 4 Weapon 6 | . . . 1 . 2 . . 3 Highest Loss Streak 6 | . . 1 5 . 6 1 3 5 To Critical Strikes . | . . . . . . . . . Average Backups 11 | . . 2 4 5 13 14 13 11 Power . | . . . . . . . . . Propulsion 2 | . . . . 1 2 4 3 . Utility 7 | . . 2 3 3 9 8 8 8 Weapon 1 | . . . . . 1 1 2 2 Tool/Special . | . . . . . . . . . Unused Backups 16 | . . 1 1 . 1 6 . 7 Power . | . . . . . . . . . Propulsion . | . . . . . . . . . Utility 13 | . . 1 1 . 1 4 . 6 Weapon 3 | . . . . . . 2 . 1 Tool/Special . | . . . . . . . . . Average Slot Usage (%) 75 | . 28 24 30 55 65 92 91 61 Engine 2 | . . . 3 5 6 4 . . Core 2 | . . . . . . 1 6 . Reactor 4 | . . . . . . 7 7 1 Treads 3 | . 28 21 8 8 5 1 . . Wheel 10 | . . . . 5 7 11 13 12 Device 4 | . . . . 5 4 6 6 2 Storage 5 | . . . . 5 7 6 6 5 Hackware 24 | . . . 1 7 22 35 28 20 Protection 4 | . . 3 5 . . 3 7 7 Energy Gun 5 | . . . 6 7 4 8 6 2 Ballistic Gun 3 | . . . . . . 2 5 5 Peak Build Rating 67 | 2 2 3 12 20 44 67 66 44 Average Rating 43 | 1 2 2 6 16 28 56 57 36 On Entrance 20 | . 2 2 2 12 20 40 65 43 Naked Turns 10 | . . . 10 . . . . . Heaviest Build 91 | . . 3 6 30 40 86 91 54 Greatest Support 32 | 3 3 3 6 12 24 32 26 22 Greatest Overweight (x) 5 | . . . . 2 2 5 4 2 Average Overweight (x) 1 | . . . . 1 1 1 2 1 Largest Inventory Capacity 15 | 5 5 5 5 15 15 15 15 15 Average Capacity 13 | 5 5 5 5 13 15 15 15 14 Most Carried 15 | . 2 3 5 8 15 15 15 13 Average Carried 11 | . . 2 4 5 13 14 13 11 Final Capacity 15 | 5 5 5 5 15 15 15 15 5 Final Carried 15 | . 2 3 5 8 15 15 13 5 Class Distribution -------------------- 67% | Hacker-Mutant 19% | Mutant 13% | Wizard-Mutant Dominant Class ---------------- Mutant | -10/Materials Mutant | -9/Materials Mutant | -8/Materials Mutant | -7/Factory Mutant | -7/DSF Hacker-Mutant | -6/Factory Hacker-Mutant | -6/Lower Caves Hacker-Mutant | -6/Lower Caves Resources | -11 -10 -9 -8 -7 -7 -6 -6 -6 ----------- Run | Yrd Mat Mat Mat Fac DSF Fac Low Low Matter Collected 1126 | 125 . . 22 . 10 671 112 186 Remotely . | . . . . . . . . . Salvage Created 785 | . . . . . . 611 104 70 Parts 28 | . . . . . . 17 7 4 Haulers Intercepted 1 | . . . . . . 1 . . Recyclers Shooed . | . . . . . . . . . Parts Field Recycled . | . . . . . . . . . Retrieved Matter . | . . . . . . . . . Parts Self-Destructed 11 | . . . . . . . 4 7 Prevented . | . . . . . . . . . Kills | -11 -10 -9 -8 -7 -7 -6 -6 -6 ------- Run | Yrd Mat Mat Mat Fac DSF Fac Low Low Combat Hostiles Destroyed 16 | . . . . . . 8 3 5 Guns 3 | . . . . . . 3 . . AOE 8 | . . . . . . . 3 5 Classes Destroyed 10 | . . . . . . 8 2 . Worker 1 | . . . . . . 1 . . Builder 1 | . . . . . . 1 . . Tunneler 1 | . . . . . . 1 . . Hauler 1 | . . . . . . 1 . . Swarmer 6 | . . . . . . . 3 3 Grunt 5 | . . . . . . 4 . 1 Sentry 2 | . . . . . . 2 . . Hunter 2 | . . . . . . 1 . 1 Programmer 1 | . . . . . . 1 . . Samaritan 1 | . . . . . . . 1 . Best Kill Streak 4 | . . . . . . 2 3 4 Combat Bots Only 4 | . . . . . . 2 3 4 Max Kills in Single Turn 2 | . . . . . . 1 2 2 Gunslinging . | . . . . . . . . . Exploded 2 | . . . . . . . 2 2 Melee . | . . . . . . . . . Uniques/NPCs Destroyed . | . . . . . . . . . Combat | -11 -10 -9 -8 -7 -7 -6 -6 -6 -------- Run | Yrd Mat Mat Mat Fac DSF Fac Low Low Hostile Shots Fired 556 | . 14 64 103 . 54 111 69 141 Missed 179 | . 8 20 44 . 10 30 22 45 Hits 377 | . 6 44 59 . 44 81 47 96 Projectile 377 | . 6 44 59 . 44 81 47 96 Critical Strikes 20 | . . . 5 . 2 3 5 5 Actively Blocked 2 | . . . . . . . 1 1 Damage Taken 5003 | . 76 350 850 . 1093 689 557 1388 Core 1601 | . 49 69 329 . 302 131 53 668 Absorbed by Shields 680 | . . . . . 12 459 193 16 Redirected to Shielding 49 | . . . . . . . 17 32 Ignored by Resistances 441 | . . . . . . 92 223 126 Core Remaining (%) 71 | 100 80 82 40 . 56 . . . Volleys Fired 68 | . . . . 6 . 50 4 8 Largest 2 | . . . . 1 . 2 2 2 Hottest 170 | . . . . 30 . 170 113 71 Shots Fired 107 | . . . . 6 . 84 8 9 Gun 98 | . . . . 6 . 84 6 2 Cannon . | . . . . . . . . . Launcher 9 | . . . . . . . 2 7 Special . | . . . . . . . . . Kinetic 16 | . . . . . . 12 2 2 Thermal 82 | . . . . 6 . 72 4 . Explosive 9 | . . . . . . . 2 7 Electromagnetic . | . . . . . . . . . Robot Hit Streak 12 | . . . . 2 . 12 5 6 Robot Miss Streak 3 | . . . . 3 . 1 1 3 Penetration Max 1 | . . . . . . 1 . . Secondary Targets . | . . . . . . . . . Shots Hit Robots 75 | . . . . 3 . 65 5 2 Core Hits 36 | . . . 1 . . 21 6 8 Critical Kills . | . . . . . . . . . Critical Parts Destroyed 2 | . . . . . . 2 . . Critical Strikes 11 | . . . . . . 10 1 . Burn 9 | . . . . . . 8 1 . Destroy 2 | . . . . . . 2 . . Melee Attacks 3 | . . . . . . 2 . 1 Impact 3 | . . . . . . 2 . 1 Slashing . | . . . . . . . . . Piercing . | . . . . . . . . . Sneak Attacks . | . . . . . . . . . Combat Hostiles . | . . . . . . . . . Follow-up Attacks . | . . . . . . . . . Damage Inflicted 2068 | . . 3 4 26 . 1223 216 596 Guns 1324 | . . . . 26 . 1223 75 . Cannons . | . . . . . . . . . Explosions 737 | . . . . . . . 141 596 Melee . | . . . . . . . . . Ramming 7 | . . 3 4 . . . . . Kinetic 246 | . . . . . . 225 21 . Thermal 1078 | . . . . 26 . 998 54 . Explosive 737 | . . . . . . . 141 596 Electromagnetic . | . . . . . . . . . Impact . | . . . . . . . . . Slashing . | . . . . . . . . . Piercing . | . . . . . . . . . Highest Corruption 12 | . . . . . . 12 12 12 Average Corruption 10 | . . . . . . 6 12 12 Corruption Purged . | . . . . . . . . . Corruption Blocked . | . . . . . . . . . Effects 49 | . . . . . . 13 18 18 Message Errors 14 | . . . . . . 3 7 4 Matter Fused 8 | . . . . . . 4 2 2 Heat Flow Errors 8 | . . . . . . . 2 6 Energy Discharges 5 | . . . . . . 1 1 3 Parts Rejected 2 | . . . . . . 1 1 . Data Loss (minor) 4 | . . . . . . 1 3 . Data Loss (major) 2 | . . . . . . 1 . 1 Misfires 2 | . . . . . . . 2 . Alerts 3 | . . . . . . 2 . 1 Weapon Failures 1 | . . . . . . . . 1 Overload Shots . | . . . . . . . . . Overflow Damage 43 | . . . . . . . . 43 Projectiles . | . . . . . . . . . Explosions 43 | . . . . . . . . 43 Melee . | . . . . . . . . . Knockbacks . | . . . . . . . . . Impact . | . . . . . . . . . Kinetic . | . . . . . . . . . Secondary . | . . . . . . . . . Self-Inflicted Damage 21 | . . . 2 . . . 19 . Shots 1 | . . . . . . . 1 . Rammed 8 | . . 6 2 . . . . . Targets Rammed 8 | . . 6 2 . . . . . Kicked . | . . . . . . . . . Crushed . | . . . . . . . . . Highest Temperature 537 | . . . . . . 537 280 235 Average Temperature 139 | . . . . . . 153 100 100 Received Heat Transfer 1170 | . 42 15 171 . 144 227 366 205 Effects 12 | . . . . . . 11 . 1 Shutdowns 2 | . . . . . . 2 . . Energy Bleed 3 | . . . . . . 2 . 1 Interference 2 | . . . . . . 2 . . Matter Decay 1 | . . . . . . 1 . . Damage (minor) 2 | . . . . . . 2 . . Damage (major) 2 | . . . . . . 2 . . Siege Activations . | . . . . . . . . . Martial Activations . | . . . . . . . . . Shielding Activations . | . . . . . . . . . Robots Disrupted . | . . . . . . . . . Combat Hostiles . | . . . . . . . . . Robots Corrupted . | . . . . . . . . . Combat Hostiles . | . . . . . . . . . Parts Fried . | . . . . . . . . . Impact Corruptions . | . . . . . . . . . Robots Melted 6 | . . . . . . 6 . . Combat Hostiles 5 | . . . . . . 5 . . Parts Melted 17 | . . . . . . 17 . . Heat Transferred 3911 | . . . . 111 . 3550 250 . Parts Sabotaged . | . . . . . . . . . Parts Stolen . | . . . . . . . . . Parts Stripped . | . . . . . . . . . Power Chain Reactions . | . . . . . . . . . Alert | -11 -10 -9 -8 -7 -7 -6 -6 -6 ------- Run | Yrd Mat Mat Mat Fac DSF Fac Low Low Maximum Alert Level . | . . . . . . . . . Low Security (%) 100 | 100 100 100 100 100 100 100 . . Level 1 . | . . . . . . . . . Level 2 . | . . . . . . . . . Level 3 . | . . . . . . . . . Level 4 . | . . . . . . . . . Level 5 . | . . . . . . . . . High Security . | . . . . . . . . . Max Security . | . . . . . . . . . Peak Influence 100 | . . 15 100 62 8 74 . . Initial 45 | . . . 5 45 8 . . . Average 20 | . . . 37 38 3 21 . . Influence Increases 662 | . . 15 140 27 . 245 85 150 Destroy 0b10 Robot/C 320 | . . . . . . 160 60 100 Destroy 0b10 Robot/NC 20 | . . . . . . 20 . . Destroy Leader 82 | . . . . . . 52 10 20 Successful Hack 57 | . . . 20 27 . 10 . . Destroy Structure 3 | . . . . . . 3 . . Lose Combat Pursuer 180 | . . 15 120 . . . 15 30 Influence Decreases 662 | . . . 55 115 12 245 85 150 Entered New Map 69 | . . . 10 55 4 . . . Time Decay 512 | . . . 40 60 . 239 65 108 Lost Part 81 | . . . 5 . 8 6 20 42 Squads Dispatched 10 | . . 2 2 . 1 4 . 1 Investigation 3 | . . 1 1 . . 1 . . Extermination 2 | . . . . . . 2 . . Reinforcement 4 | . . 1 1 . 1 1 . . Assault 1 | . . . . . . . . 1 Garrison . | . . . . . . . . . Intercept . | . . . . . . . . . Searches Triggered . | . . . . . . . . . Construction Impeded . | . . . . . . . . . Haulers Reinforced 1 | . . . . . . 1 . . Active Scanning Responses . | . . . . . . . . . Cargo Convoy Interrupts . | . . . . . . . . . Stealth | -11 -10 -9 -8 -7 -7 -6 -6 -6 --------- Run | Yrd Mat Mat Mat Fac DSF Fac Low Low Distress Signals 2 | . . 1 1 . . . . . Communications Jammed . | . . . . . . . . . Distress Signals . | . . . . . . . . . Times Spotted 77 | . 4 12 20 2 4 10 4 21 Peak Tracking Total 16 | . 4 10 16 . 4 3 3 12 Tactical Retreats 7 | . . 1 2 . . . 1 3 Traps | -11 -10 -9 -8 -7 -7 -6 -6 -6 ------- Run | Yrd Mat Mat Mat Fac DSF Fac Low Low Traps Triggered 6 | . . 1 1 . 1 3 . . Indirectly . | . . . . . . . . . Trap Hack Attempts . | . . . . . . . . . Triggered . | . . . . . . . . . Disarmed . | . . . . . . . . . Reprogrammed . | . . . . . . . . . Reused . | . . . . . . . . . Traps Extracted . | . . . . . . . . . Installed . | . . . . . . . . . Triggered . | . . . . . . . . . Machines | -11 -10 -9 -8 -7 -7 -6 -6 -6 ---------- Run | Yrd Mat Mat Mat Fac DSF Fac Low Low Machines Disabled . | . . . . . . . . . Max in Single Turn . | . . . . . . . . . Machines Repaired . | . . . . . . . . . Machines Dismantled . | . . . . . . . . . Machines Sabotaged . | . . . . . . . . . Overloaded Fab Kills . | . . . . . . . . . Hacking | -11 -10 -9 -8 -7 -7 -6 -6 -6 --------- Run | Yrd Mat Mat Mat Fac DSF Fac Low Low Machines Accessed 9 | . . . 3 3 . 3 . . Terminals 6 | . . . 2 2 . 2 . . Fabricators . | . . . . . . . . . Repair Stations 2 | . . . 1 1 . . . . Recycling Units 1 | . . . . . . 1 . . Scanalyzers . | . . . . . . . . . Garrison Access . | . . . . . . . . . Total Hacks 22 | . . . 5 6 . 11 . . Successful 13 | . . . 2 3 . 8 . . Failed 9 | . . . 3 3 . 3 . . Catastrophic 2 | . . . 2 . . . . . Database Lockouts . | . . . . . . . . . Manual 14 | . . . 2 2 . 10 . . Terminals 16 | . . . 4 5 . 7 . . Fabricators . | . . . . . . . . . Repair Stations 2 | . . . 1 1 . . . . Recycling Units 4 | . . . . . . 4 . . Scanalyzers . | . . . . . . . . . Garrison Access . | . . . . . . . . . Terminal Hacks 3 | . . . 1 1 . 1 . . Open DSF 1 | . . . . 1 . . . . Terminal Index 1 | . . . . . . 1 . . Locate Traps 1 | . . . 1 . . . . . Fabricator Hacks . | . . . . . . . . . Repair Station Hacks 2 | . . . 1 1 . . . . Refit 2 | . . . 1 1 . . . . Recycling Unit Hacks 1 | . . . . . . 1 . . Report Inventory 1 | . . . . . . 1 . . Scanalyzer . | . . . . . . . . . Garrison Access Hacks . | . . . . . . . . . Unauthorized Hacks 7 | . . . . 1 . 6 . . Terminals 5 | . . . . 1 . 4 . . Botnet 2 | . . . . . . 2 . . Operators 3 | . . . . 1 . 2 . . Fabricators . | . . . . . . . . . Repair Stations . | . . . . . . . . . Recycling Units 2 | . . . . . . 2 . . Monitor 1 | . . . . . . 1 . . Mask 1 | . . . . . . 1 . . Scanalyzers . | . . . . . . . . . Garrison Access . | . . . . . . . . . Data Cores Recovered . | . . . . . . . . . Used . | . . . . . . . . . Hacking Detections 7 | . . . 2 2 . 3 . . Full Trace Events 2 | . . . 1 . . 1 . . Feedback Events . | . . . . . . . . . Feedback Blocked 1 | . . . . . . 1 . . Robot Schematics Acquired . | . . . . . . . . . Robots Built . | . . . . . . . . . Authchips . | . . . . . . . . . Time . | . . . . . . . . . Total Robot Build Rating . | . . . . . . . . . Part Schematics Acquired . | . . . . . . . . . Parts Built . | . . . . . . . . . Authchips . | . . . . . . . . . Time . | . . . . . . . . . Total Part Build Rating . | . . . . . . . . . Parts Repaired . | . . . . . . . . . Time . | . . . . . . . . . Parts Recycled . | . . . . . . . . . Recycled Matter . | . . . . . . . . . Retrieved Matter . | . . . . . . . . . Retrieved Components . | . . . . . . . . . Parts Scanalyzed . | . . . . . . . . . Part Schematics Acquired . | . . . . . . . . . Parts Damaged . | . . . . . . . . . Bothacking | -11 -10 -9 -8 -7 -7 -6 -6 -6 ------------ Run | Yrd Mat Mat Mat Fac DSF Fac Low Low Used RIF Installer . | . . . . . . . . . Robots Hacked . | . . . . . . . . . Non-combat . | . . . . . . . . . Combat . | . . . . . . . . . Robot Hacks Applied . | . . . . . . . . . Relay Couplers Released . | . . . . . . . . . Fabnet Peak Effective % . | . . . . . . . . . Robots Rewired . | . . . . . . . . . Allies Hacked . | . . . . . . . . . Hacks Repelled . | . . . . . . . . . Allies | -11 -10 -9 -8 -7 -7 -6 -6 -6 -------- Run | Yrd Mat Mat Mat Fac DSF Fac Low Low Total Allies . | . . . . . . . . . Largest Group . | . . . . . . . . . Highest-Rated Group . | . . . . . . . . . Highest-Rated Ally . | . . . . . . . . . Total Orders . | . . . . . . . . . Ally Attacks . | . . . . . . . . . Total Damage . | . . . . . . . . . Kills . | . . . . . . . . . Allies Corrupted . | . . . . . . . . . Allies Melted . | . . . . . . . . . Intel | -11 -10 -9 -8 -7 -7 -6 -6 -6 ------- Run | Yrd Mat Mat Mat Fac DSF Fac Low Low Active Infowar (turns) . | . . . . . . . . . Robot Analysis Total . | . . . . . . . . . Derelict Logs Recovered 1 | . . . . . . . 1 . Drone Launches . | . . . . . . . . . Drone Recoveries . | . . . . . . . . . Exploration | -11 -10 -9 -8 -7 -7 -6 -6 -6 ------------- Run | Yrd Mat Mat Mat Fac DSF Fac Low Low Turns Passed 2264 | 18 44 102 97 129 95 827 532 420 Spaces Moved 1834 | 30 83 177 152 108 61 449 398 376 Core 487 | 30 83 177 128 38 . . . 31 Treads . | . . . . . . . . . Legs . | . . . . . . . . . Wheels 1323 | . . . . 70 61 449 398 345 Hover 24 | . . . 24 . . . . . Flight . | . . . . . . . . . Fastest Speed 50 | 50 50 50 50 50 105 100 100 50 Average Speed 99 | 50 50 50 54 94 112 120 125 101 Slowest Speed 175 | 50 50 50 80 120 120 175 145 115 Overloaded Moves . | . . . . . . . . . Propulsion Burnouts . | . . . . . . . . . Robots Hopped . | . . . . . . . . . Potential Cave-ins . | . . . . . . . . . Cave-ins Triggered . | . . . . . . . . . Exploration Rate (%) 32 | 4 20 23 25 3 79 10 69 61 Regions Visited 8 Branch Regions 2 Pre-discovered Areas . | . . . . . . . . . Known Exits Taken 1 | . . . . 1 . . . . Unknown Exits Taken 6 | 1 1 1 1 . . 1 1 . Scrap Searched 3 | . . . . . . . 1 2 Spaces Dug 1 | . . . . . . . . 1 Terrain Destroyed 125 | . . . . . . . 29 96 Melee 1 | . . . . . . . . 1 Projectile . | . . . . . . . . . AOE 124 | . . . . . . . 29 95 Terrain Rammed . | . . . . . . . . . Walls Destroyed . | . . . . . . . . . Machines Disabled . | . . . . . . . . . Actions | -11 -10 -9 -8 -7 -7 -6 -6 -6 --------- Run | Yrd Mat Mat Mat Fac DSF Fac Low Low Total 2150 | 31 84 186 165 129 85 643 425 402 Wait 95 | . . . . 5 . 81 9 . Move 1826 | 29 82 176 151 107 60 448 397 376 Hop . | . . . . . . . . . Pick Up 38 | . 2 2 3 5 11 12 1 2 Fast Attach 28 | 2 . 1 5 1 6 10 2 1 Attach 28 | . . . 1 3 3 7 6 8 Detach 12 | . . . 1 1 1 2 3 4 Swap 19 | . . . . . 1 15 3 . Drop 24 | . . 1 2 1 2 16 . 2 Fire 68 | . . . . 6 . 50 4 8 Melee 3 | . . . . . . 2 . 1 Ram 2 | . . . 2 . . . . . Kick . | . . . . . . . . . Crush 6 | . . 6 . . . . . . Escape Stasis 1 | . . . . . 1 . . . Rewire . | . . . . . . . . . Trap . | . . . . . . . . . Miscellaneous . | . . . . . . . . . Route ------- -11/Scrapyard -10/Materials -9/Materials -8/Materials -7/Factory -7/DSF -6/Factory -6/Lower Caves -6/Lower Caves (discovered 1 exit: [*Dat]) History --------- Turn | Location | Event 7 | -11/Scrapyard | Discovered new exit (range 14) 19 | -11/Scrapyard | Entered Materials 57 | -10/Materials | Discovered new exit (range 8) 63 | -10/Materials | Entered another Materials area 63 | -9/Materials | Evolved 2 slots: Utility x2 162 | -9/Materials | Discovered new exit (range 8) 165 | -9/Materials | Entered another Materials area 165 | -8/Materials | Evolved 2 slots: Utility x2 242 | -8/Materials | Lost 5 parts (1p1n2u1w) 247 | -8/Materials | Core integrity fell below 50% 255 | -8/Materials | Discovered new exit (range 16) 262 | -8/Materials | Entered Factory 262 | -7/Factory | Evolved 2 slots: Utility x2 305 | -7/Factory | Build established: Mutant 390 | -7/Factory | Identified exit to DSF 391 | -7/Factory | Entered DSF 425 | -7/DSF | Additional patrols routed to DSF 466 | -7/DSF | Discovered new exit (range 13) 486 | -7/DSF | Entered Factory 486 | -6/Factory | Evolved 2 slots: Power x2 509 | -6/Factory | Lost 6 parts (1p1n2u2w) 733 | -6/Factory | Build established: Wizard-Mutant 1049 | -6/Factory | Build established: Hacker-Mutant 1232 | -6/Factory | Discovered new exit (range 4) 1267 | -6/Factory | System corruption reached 10% 1313 | -6/Factory | Entered Lower Caves 1314 | -6/Lower Caves | Encountered a Warlord checkpoint 1502 | -6/Lower Caves | Learned location of 1 exit from Proximity Caves 1583 | -6/Lower Caves | Spotted B-75 Beast 1617 | -6/Lower Caves | Lost 3 parts (1p1n1u) 1821 | -6/Lower Caves | Discovered new exit (range 7) 1845 | -6/Lower Caves | Entered another Lower Caves area 1875 | -6/Lower Caves | Ambushed by wild Derelicts 2046 | -6/Lower Caves | Lost 3 parts (1n1u1w) 2244 | -6/Lower Caves | Attracted the attention of an 0b10 outpost 2250 | -6/Lower Caves | Core integrity fell below 50% 2258 | -6/Lower Caves | Attracted the attention of an 0b10 checkpoint 2258 | -6/Lower Caves | Core integrity fell below 20% 2259 | -6/Lower Caves | Discovered new exit (range 14) 2265 | -6/Lower Caves | Destroyed by Y-54 Guardian with Flak Gun Last Messages --------------- 02249_ Extracted 31 energy. 02249_ Slug penetrates Wall. 02250_ Acquired Imp. System Shield. 02250_ Slug penetrates Wall. 02251_ Extracted 16 energy. 02251_ Penetrated by Slug. 02252_ Impact Mace destroyed. 02252_ Penetrated by Slug. 02254_ Wall collapses. 02254_ Slug penetrates Wall. 02254_ Penetrated by Slug. 02255_ System corrupted: IFF burst signal emitted. 02255_ Penetrated by Slug. 02255_ Slug penetrates Wall. 02257_ Penetrated by Slug. 02258_ Y-54 Guardian: "INTERCEPTING UNREGISTERED DERELICT." 02259_ Imp. Hacking Suite destroyed. 02259_ EXIT=FOUND Map ----- +----------------------------------------------------+ | ???????????????????????????????????????????????? | | ???????????????????????????????????????????????? | | ???????????????????????????????????????????????? | | ???????????????????????????????????????????????? | | ???????????????????????????????????????????????? | | ???????????????????????????????????????????????? | | ???????????????????????????????????????????????? | | ???????????????????????????????????????????????? | | ???????????????????????????????????????????????? | | ???????????????????????????????????????????????? | | ???????????????????????????????????????????????? | | ???????????????????????#???????????????????????? | | ???????????????? ?????? ???????????????????????? | | ??????????????# ????? ?????????????????????? | | ??????????????# #####